[Event "January 9 Early 2024"]
[Site "https://www.chess.com"]
[Date "2024.01.11"]
[Round "6"]
[White "Drygalov, Sergey"]
[Black "Makarian, Rudik"]
[Result "0-1"]
[Board "204"]
[TimeControl "180+1"]
[WhiteFideId "24171743"]
[BlackFideId "44105681"]
[WhiteElo "2944"]
[BlackElo "3095"]
[WhiteTeam "RUS"]
[BlackTeam "FID"]
[WhiteClock "0:00:04"]
[BlackClock "0:00:09"]

1. d4 {[%clk 0:02:59]}  Nf6 {[%clk 0:02:59]} 2. c4 {[%clk 0:03:00]}  e6 {[%clk 0:02:59]} 3. Nf3 {[%clk 0:03:01]}  d5 {[%clk 0:02:59]} 4. Nc3 {[%clk 0:03:02]}  dxc4 {[%clk 0:02:59]} 5. e4 {[%clk 0:03:02]}  b5 {[%clk 0:02:59]} 6. e5 {[%clk 0:03:01]}  Nd5 {[%clk 0:02:59]} 7. Nxb5 {[%clk 0:03:01]}  Nb6 {[%clk 0:03:00]} 8. Be2 {[%clk 0:02:58]}  Nc6 {[%clk 0:02:59]} 9. Be3 {[%clk 0:02:58]}  Bb4+ {[%clk 0:02:54]} 10. Nc3 {[%clk 0:02:58]}  Ne7 {[%clk 0:02:54]} 11. O-O {[%clk 0:02:54]}  Nf5 {[%clk 0:02:53]} 12. Na4 {[%clk 0:02:45]}  O-O {[%clk 0:02:48]} 13. Nxb6 {[%clk 0:02:42]}  axb6 {[%clk 0:02:48]} 14. Bxc4 {[%clk 0:02:42]}  Bb7 {[%clk 0:02:48]} 15. a3 {[%clk 0:02:42]}  Be7 {[%clk 0:02:47]} 16. Rc1 {[%clk 0:02:22]}  c5 {[%clk 0:02:37]} 17. dxc5 {[%clk 0:02:13]}  Nxe3 {[%clk 0:02:36]} 18. fxe3 {[%clk 0:02:13]}  Bxc5 {[%clk 0:02:36]} 19. Qe2 {[%clk 0:02:03]}  Bxf3 {[%clk 0:02:22]} 20. Rxf3 {[%clk 0:01:22]}  Qg5 {[%clk 0:02:21]} 21. Rcf1 {[%clk 0:01:22]}  Qxe5 {[%clk 0:02:21]} 22. Qf2 {[%clk 0:01:22]}  Ra7 {[%clk 0:02:08]} 23. Kh1 {[%clk 0:01:20]}  g6 {[%clk 0:02:07]} 24. Qe2 {[%clk 0:01:02]}  Kg7 {[%clk 0:02:05]} 25. Qc2 {[%clk 0:00:51]}  h5 {[%clk 0:01:45]} 26. a4 {[%clk 0:00:42]}  Bd6 {[%clk 0:01:40]} 27. g3 {[%clk 0:00:41]}  f5 {[%clk 0:01:22]} 28. Bb5 {[%clk 0:00:30]}  h4 {[%clk 0:01:11]} 29. Qc3 {[%clk 0:00:29]}  Qxc3 {[%clk 0:01:07]} 30. bxc3 {[%clk 0:00:29]}  hxg3 {[%clk 0:00:58]} 31. hxg3 {[%clk 0:00:29]}  Kf6 {[%clk 0:00:56]} 32. e4 {[%clk 0:00:28]}  Rh8+ {[%clk 0:00:55]} 33. Kg2 {[%clk 0:00:28]}  Rah7 {[%clk 0:00:55]} 34. Kf2 {[%clk 0:00:23]}  Rh2+ {[%clk 0:00:47]} 35. Ke3 {[%clk 0:00:24]}  Rg2 {[%clk 0:00:47]} 36. exf5 {[%clk 0:00:10]}  exf5 {[%clk 0:00:45]} 37. Kd4 {[%clk 0:00:10]}  Rxg3 {[%clk 0:00:37]} 38. Kd5 {[%clk 0:00:07]}  Rd8 {[%clk 0:00:17]} 39. Kc6 {[%clk 0:00:08]}  Rxf3 {[%clk 0:00:17]} 40. Rxf3 {[%clk 0:00:09]}  Bc5 {[%clk 0:00:17]} 41. a5 {[%clk 0:00:08]}  Rd6+ {[%clk 0:00:17]} 42. Kc7 {[%clk 0:00:05]}  bxa5 {[%clk 0:00:18]} 43. c4 {[%clk 0:00:03]}  g5 {[%clk 0:00:17]} 44. Bd7 {[%clk 0:00:04]}  f4 {[%clk 0:00:12]} 45. Rh3 {[%clk 0:00:04]}  Ke5 {[%clk 0:00:10]} 46. Rh5 {[%clk 0:00:04]}  Rg6 {[%clk 0:00:09]} 0-1

[Event "January 9 Early 2024"]
[Site "https://www.chess.com"]
[Date "2024.01.11"]
[Round "6"]
[White "Bolat, Inayat"]
[Black "Janaszak, Dawid"]
[Result "0-1"]
[Board "205"]
[TimeControl "180+1"]
[WhiteFideId "13733125"]
[BlackFideId "1119206"]
[WhiteElo "2425"]
[BlackElo "2616"]
[WhiteTeam "KAZ"]
[BlackTeam "POL"]
[WhiteClock "0:00:01"]
[BlackClock "0:00:10"]

1. d4 {[%clk 0:03:00]}  Nf6 {[%clk 0:02:58]} 2. Nc3 {[%clk 0:02:59]}  d5 {[%clk 0:02:47]} 3. Bg5 {[%clk 0:02:52]}  Nbd7 {[%clk 0:02:38]} 4. e3 {[%clk 0:02:44]}  c5 {[%clk 0:02:38]} 5. Nf3 {[%clk 0:02:43]}  Qb6 {[%clk 0:02:37]} 6. Rb1 {[%clk 0:02:34]}  e6 {[%clk 0:02:34]} 7. Be2 {[%clk 0:02:30]}  cxd4 {[%clk 0:02:26]} 8. exd4 {[%clk 0:02:27]}  Ne4 {[%clk 0:02:25]} 9. Bf4 {[%clk 0:02:16]}  Bb4 {[%clk 0:02:22]} 10. O-O {[%clk 0:02:03]}  O-O {[%clk 0:02:13]} 11. a3 {[%clk 0:01:58]}  Bd6 {[%clk 0:01:56]} 12. Ne5 {[%clk 0:01:44]}  f6 {[%clk 0:01:50]} 13. Nxe4 {[%clk 0:01:38]}  fxe5 {[%clk 0:01:39]} 14. Nxd6 {[%clk 0:01:36]}  Rxf4 {[%clk 0:01:34]} 15. dxe5 {[%clk 0:01:17]}  Nxe5 {[%clk 0:01:30]} 16. Qd2 {[%clk 0:01:14]}  Rf6 {[%clk 0:01:05]} 17. Nxc8 {[%clk 0:00:54]}  Rxc8 {[%clk 0:01:06]} 18. c3 {[%clk 0:00:39]}  Rcf8 {[%clk 0:01:06]} 19. Qe3 {[%clk 0:00:23]}  Qxe3 {[%clk 0:00:47]} 20. fxe3 {[%clk 0:00:24]}  Kf7 {[%clk 0:00:47]} 21. Rf4 {[%clk 0:00:15]}  Ke7 {[%clk 0:00:43]} 22. Rbf1 {[%clk 0:00:12]}  b6 {[%clk 0:00:42]} 23. a4 {[%clk 0:00:12]}  Rc8 {[%clk 0:00:41]} 24. a5 {[%clk 0:00:12]}  bxa5 {[%clk 0:00:39]} 25. Ra4 {[%clk 0:00:11]}  Rxf1+ {[%clk 0:00:38]} 26. Bxf1 {[%clk 0:00:11]}  Rc5 {[%clk 0:00:39]} 27. b4 {[%clk 0:00:09]}  Rxc3 {[%clk 0:00:36]} 28. Rxa5 {[%clk 0:00:09]}  Kf6 {[%clk 0:00:36]} 29. Rxa7 {[%clk 0:00:08]}  Rxe3 {[%clk 0:00:37]} 30. b5 {[%clk 0:00:07]}  Re1 {[%clk 0:00:37]} 31. Kf2 {[%clk 0:00:07]}  Rb1 {[%clk 0:00:37]} 32. Be2 {[%clk 0:00:07]}  d4 {[%clk 0:00:35]} 33. Ra3 {[%clk 0:00:05]}  Rb2 {[%clk 0:00:29]} 34. Ke1 {[%clk 0:00:05]}  g5 {[%clk 0:00:23]} 35. h3 {[%clk 0:00:02]}  h6 {[%clk 0:00:23]} 36. g4 {[%clk 0:00:02]}  Ke7 {[%clk 0:00:20]} 37. Kd1 {[%clk 0:00:02]}  Kd6 {[%clk 0:00:18]} 38. Ra6+ {[%clk 0:00:02]}  Kd5 {[%clk 0:00:18]} 39. Ra3 {[%clk 0:00:01]}  Ke4 {[%clk 0:00:17]} 40. Ke1 {[%clk 0:00:01]}  d3 {[%clk 0:00:17]} 41. Bd1 {[%clk 0:00:02]}  Rxb5 {[%clk 0:00:16]} 42. Rc3 {[%clk 0:00:01]}  Kd4 {[%clk 0:00:15]} 43. Ra3 {[%clk 0:00:01]}  Ke3 {[%clk 0:00:15]} 44. Ra6 {[%clk 0:00:01]}  Rb4 {[%clk 0:00:10]} 45. Rxe6 {[%clk 0:00:01]}  Re4 {[%clk 0:00:10]} 46. Kf1 {[%clk 0:00:01]}  Kd2 {[%clk 0:00:10]} 47. Bf3 {[%clk 0:00:01]}  Re1+ {[%clk 0:00:09]} 48. Kf2 {[%clk 0:00:01]}  Nxf3 {[%clk 0:00:10]} 0-1

[Event "January 9 Early 2024"]
[Site "https://www.chess.com"]
[Date "2024.01.11"]
[Round "6"]
[White "Mammadzada, Gunay"]
[Black "Biriukov, Ilja"]
[Result "1-0"]
[Board "206"]
[TimeControl "180+1"]
[WhiteFideId "13403729"]
[BlackFideId "4113373"]
[WhiteElo "2513"]
[BlackElo "2256"]
[WhiteTeam "AZE"]
[BlackTeam "RUS"]
[WhiteClock "0:00:07"]
[BlackClock "0:00:02"]

1. e4 {[%clk 0:02:53]}  e6 {[%clk 0:02:59]} 2. d4 {[%clk 0:02:51]}  d5 {[%clk 0:03:00]} 3. Nd2 {[%clk 0:02:51]}  Nf6 {[%clk 0:02:59]} 4. e5 {[%clk 0:02:50]}  Nfd7 {[%clk 0:02:58]} 5. Bd3 {[%clk 0:02:51]}  b6 {[%clk 0:02:58]} 6. Ne2 {[%clk 0:02:45]}  c5 {[%clk 0:02:58]} 7. c3 {[%clk 0:02:44]}  Ba6 {[%clk 0:02:57]} 8. Bxa6 {[%clk 0:02:42]}  Nxa6 {[%clk 0:02:58]} 9. O-O {[%clk 0:02:42]}  Be7 {[%clk 0:02:53]} 10. Nf3 {[%clk 0:02:41]}  Rc8 {[%clk 0:02:44]} 11. Qa4 {[%clk 0:02:39]}  Nc7 {[%clk 0:02:25]} 12. Qxa7 {[%clk 0:02:26]}  Ra8 {[%clk 0:02:23]} 13. Qb7 {[%clk 0:02:26]}  O-O {[%clk 0:02:03]} 14. dxc5 {[%clk 0:01:49]}  bxc5 {[%clk 0:02:02]} 15. Qb3 {[%clk 0:01:48]}  f6 {[%clk 0:01:55]} 16. exf6 {[%clk 0:01:36]}  Nxf6 {[%clk 0:01:55]} 17. Qc2 {[%clk 0:01:34]}  Ne4 {[%clk 0:01:41]} 18. Ng3 {[%clk 0:01:29]}  Nxg3 {[%clk 0:01:39]} 19. hxg3 {[%clk 0:01:29]}  Bd6 {[%clk 0:01:32]} 20. Ng5 {[%clk 0:01:23]}  g6 {[%clk 0:01:28]} 21. Qe2 {[%clk 0:01:03]}  Qf6 {[%clk 0:01:25]} 22. Qg4 {[%clk 0:00:53]}  h5 {[%clk 0:01:16]} 23. Qh3 {[%clk 0:00:45]}  Rae8 {[%clk 0:01:07]} 24. g4 {[%clk 0:00:45]}  Bf4 {[%clk 0:00:51]} 25. Nf3 {[%clk 0:00:39]}  hxg4 {[%clk 0:00:39]} 26. Qxg4 {[%clk 0:00:18]}  Bxc1 {[%clk 0:00:38]} 27. Raxc1 {[%clk 0:00:19]}  Qf5 {[%clk 0:00:39]} 28. Qg3 {[%clk 0:00:17]}  Re7 {[%clk 0:00:33]} 29. Nh4 {[%clk 0:00:16]}  Qf6 {[%clk 0:00:29]} 30. Qxg6+ {[%clk 0:00:15]}  Rg7 {[%clk 0:00:25]} 31. Qxf6 {[%clk 0:00:14]}  Rxf6 {[%clk 0:00:26]} 32. g3 {[%clk 0:00:10]}  e5 {[%clk 0:00:21]} 33. Rce1 {[%clk 0:00:09]}  e4 {[%clk 0:00:20]} 34. Ng2 {[%clk 0:00:09]}  Ne6 {[%clk 0:00:19]} 35. Rd1 {[%clk 0:00:09]}  Rf5 {[%clk 0:00:17]} 36. Ne3 {[%clk 0:00:08]}  Rh5 {[%clk 0:00:08]} 37. Rxd5 {[%clk 0:00:08]}  Ng5 {[%clk 0:00:08]} 38. g4 {[%clk 0:00:06]}  Nf3+ {[%clk 0:00:08]} 39. Kg2 {[%clk 0:00:05]}  Rh2+ {[%clk 0:00:08]} 40. Kg3 {[%clk 0:00:05]}  Rgh7 {[%clk 0:00:03]} 41. Rd8+ {[%clk 0:00:05]}  Kf7 {[%clk 0:00:03]} 42. Rd7+ {[%clk 0:00:06]}  Kg6 {[%clk 0:00:02]} 43. Rxh7 {[%clk 0:00:07]} 1-0

[Event "January 9 Early 2024"]
[Site "https://www.chess.com"]
[Date "2024.01.11"]
[Round "6"]
[White "Narayanan S L"]
[Black "Lagarde, Maxime"]
[Result "0-1"]
[Board "207"]
[TimeControl "180+1"]
[WhiteFideId "5058422"]
[BlackFideId "662399"]
[WhiteElo "3003"]
[BlackElo "2826"]
[WhiteTeam "IND"]
[BlackTeam "FRA"]
[WhiteClock "0:00:05"]
[BlackClock "0:00:09"]

1. b3 {[%clk 0:02:58]}  e5 {[%clk 0:02:58]} 2. Bb2 {[%clk 0:02:58]}  Nc6 {[%clk 0:02:59]} 3. c4 {[%clk 0:02:57]}  Nf6 {[%clk 0:02:58]} 4. Nf3 {[%clk 0:02:57]}  e4 {[%clk 0:02:56]} 5. Nd4 {[%clk 0:02:57]}  Bc5 {[%clk 0:02:55]} 6. Nf5 {[%clk 0:02:57]}  g6 {[%clk 0:02:26]} 7. Ng3 {[%clk 0:02:51]}  O-O {[%clk 0:02:24]} 8. e3 {[%clk 0:02:50]}  Re8 {[%clk 0:02:17]} 9. Nc3 {[%clk 0:02:46]}  h5 {[%clk 0:02:07]} 10. h4 {[%clk 0:02:44]}  d6 {[%clk 0:01:57]} 11. Na4 {[%clk 0:02:25]}  Ne5 {[%clk 0:01:48]} 12. Nxc5 {[%clk 0:02:23]}  dxc5 {[%clk 0:01:49]} 13. Qc2 {[%clk 0:02:23]}  Bg4 {[%clk 0:01:29]} 14. Bxe5 {[%clk 0:01:51]}  Rxe5 {[%clk 0:01:29]} 15. Be2 {[%clk 0:01:50]}  Bxe2 {[%clk 0:01:22]} 16. Nxe2 {[%clk 0:01:49]}  Qd6 {[%clk 0:01:21]} 17. Nf4 {[%clk 0:01:47]}  a5 {[%clk 0:01:17]} 18. a4 {[%clk 0:01:42]}  Rf5 {[%clk 0:01:11]} 19. O-O-O {[%clk 0:01:38]}  Rxf4 {[%clk 0:01:04]} 20. exf4 {[%clk 0:01:38]}  Qxf4 {[%clk 0:01:04]} 21. f3 {[%clk 0:01:24]}  exf3 {[%clk 0:01:00]} 22. gxf3 {[%clk 0:01:25]}  Rd8 {[%clk 0:01:00]} 23. Qc3 {[%clk 0:01:24]}  b6 {[%clk 0:00:59]} 24. Rde1 {[%clk 0:01:22]}  Rd4 {[%clk 0:00:56]} 25. Re3 {[%clk 0:01:21]}  Kg7 {[%clk 0:00:50]} 26. Rd3 {[%clk 0:01:21]}  Nd7 {[%clk 0:00:48]} 27. Re3 {[%clk 0:01:08]}  Ne5 {[%clk 0:00:45]} 28. Rhe1 {[%clk 0:01:08]}  Nc6 {[%clk 0:00:39]} 29. Re4 {[%clk 0:01:08]}  Qf6 {[%clk 0:00:38]} 30. R1e3 {[%clk 0:01:05]}  Nb4 {[%clk 0:00:37]} 31. Kd1 {[%clk 0:00:55]}  Kh7 {[%clk 0:00:33]} 32. Re7 {[%clk 0:00:52]}  Nc6 {[%clk 0:00:23]} 33. Rxc7 {[%clk 0:00:50]}  Ne5 {[%clk 0:00:20]} 34. Re4 {[%clk 0:00:46]}  Nxf3 {[%clk 0:00:19]} 35. Rxd4 {[%clk 0:00:41]}  Nxd4 {[%clk 0:00:20]} 36. Qd3 {[%clk 0:00:36]}  Kg7 {[%clk 0:00:19]} 37. Kc1 {[%clk 0:00:34]}  Qxh4 {[%clk 0:00:19]} 38. Qe3 {[%clk 0:00:27]}  Qf6 {[%clk 0:00:17]} 39. Rc8 {[%clk 0:00:28]}  h4 {[%clk 0:00:14]} 40. Qe8 {[%clk 0:00:26]}  Nxb3+ {[%clk 0:00:12]} 41. Kb1 {[%clk 0:00:23]}  Kh6 {[%clk 0:00:08]} 42. Qe3+ {[%clk 0:00:19]}  g5 {[%clk 0:00:08]} 43. Rg8 {[%clk 0:00:06]}  Qa1+ {[%clk 0:00:08]} 44. Kc2 {[%clk 0:00:06]}  Nd4+ {[%clk 0:00:09]} 45. Kd3 {[%clk 0:00:05]}  Qb1+ {[%clk 0:00:09]} 0-1

[Event "January 9 Early 2024"]
[Site "https://www.chess.com"]
[Date "2024.01.11"]
[Round "6"]
[White "Pinero Rodriguez, Carlos Jose"]
[Black "Fernandez Guillen, Ernesto J."]
[Result "0-1"]
[Board "209"]
[TimeControl "180+1"]
[WhiteFideId "3901726"]
[BlackFideId "3512428"]
[WhiteElo "2562"]
[BlackElo "2784"]
[WhiteTeam "VEN"]
[BlackTeam "CUB"]
[WhiteClock "0:00:15"]
[BlackClock "0:00:05"]

1. e4 {[%clk 0:03:00]}  e5 {[%clk 0:02:58]} 2. Nf3 {[%clk 0:03:00]}  Nc6 {[%clk 0:02:51]} 3. Bb5 {[%clk 0:02:57]}  f5 {[%clk 0:02:50]} 4. d4 {[%clk 0:02:42]}  fxe4 {[%clk 0:02:49]} 5. Nxe5 {[%clk 0:02:40]}  Nxe5 {[%clk 0:02:50]} 6. dxe5 {[%clk 0:02:39]}  c6 {[%clk 0:02:51]} 7. Bc4 {[%clk 0:02:33]}  Qa5+ {[%clk 0:02:50]} 8. Nc3 {[%clk 0:02:31]}  Qxe5 {[%clk 0:02:51]} 9. Bxg8 {[%clk 0:01:51]}  Rxg8 {[%clk 0:02:49]} 10. Be3 {[%clk 0:01:52]}  d5 {[%clk 0:02:48]} 11. Qd2 {[%clk 0:01:51]}  Qh5 {[%clk 0:02:37]} 12. Ne2 {[%clk 0:01:44]}  Bd6 {[%clk 0:02:18]} 13. h3 {[%clk 0:01:37]}  Bg4 {[%clk 0:01:56]} 14. Nf4 {[%clk 0:01:32]}  Bxf4 {[%clk 0:01:56]} 15. Bxf4 {[%clk 0:01:33]}  Rf8 {[%clk 0:01:55]} 16. O-O {[%clk 0:01:29]}  Be6 {[%clk 0:01:40]} 17. Rae1 {[%clk 0:01:28]}  Qg6 {[%clk 0:01:15]} 18. f3 {[%clk 0:01:28]}  O-O-O {[%clk 0:01:11]} 19. fxe4 {[%clk 0:01:20]}  Bxh3 {[%clk 0:00:46]} 20. Rf2 {[%clk 0:01:07]}  dxe4 {[%clk 0:00:42]} 21. Qe3 {[%clk 0:01:03]}  Be6 {[%clk 0:00:25]} 22. Qxa7 {[%clk 0:01:01]}  Rxf4 {[%clk 0:00:25]} 23. Rxf4 {[%clk 0:00:57]}  Bd5 {[%clk 0:00:21]} 24. Qe3 {[%clk 0:00:50]}  Qd6 {[%clk 0:00:12]} 25. b3 {[%clk 0:00:50]}  c5 {[%clk 0:00:12]} 26. c4 {[%clk 0:00:50]}  Bc6 {[%clk 0:00:13]} 27. Rf7 {[%clk 0:00:40]}  Qg6 {[%clk 0:00:12]} 28. Qf4 {[%clk 0:00:34]}  Rd6 {[%clk 0:00:09]} 29. Rf8+ {[%clk 0:00:23]}  Kc7 {[%clk 0:00:09]} 30. Rd1 {[%clk 0:00:23]}  e3 {[%clk 0:00:05]} 31. Qxd6+ {[%clk 0:00:22]}  Qxd6 {[%clk 0:00:05]} 32. Rxd6 {[%clk 0:00:22]}  Kxd6 {[%clk 0:00:06]} 33. Kf1 {[%clk 0:00:22]}  Ke7 {[%clk 0:00:02]} 34. Rb8 {[%clk 0:00:21]}  e2+ {[%clk 0:00:02]} 35. Kxe2 {[%clk 0:00:20]}  Bxg2 {[%clk 0:00:02]} 36. Ke3 {[%clk 0:00:17]}  h6 {[%clk 0:00:02]} 37. Rc8 {[%clk 0:00:16]}  Bc6 {[%clk 0:00:03]} 38. Rc7+ {[%clk 0:00:16]}  Kf6 {[%clk 0:00:02]} 39. a3 {[%clk 0:00:16]}  h5 {[%clk 0:00:02]} 40. b4 {[%clk 0:00:16]}  cxb4 {[%clk 0:00:02]} 41. axb4 {[%clk 0:00:17]}  h4 {[%clk 0:00:02]} 42. Kf2 {[%clk 0:00:17]}  g5 {[%clk 0:00:02]} 43. Rh7 {[%clk 0:00:16]}  Be4 {[%clk 0:00:02]} 44. Rh8 {[%clk 0:00:16]}  Ke5 {[%clk 0:00:03]} 45. Rg8 {[%clk 0:00:14]}  Kf4 {[%clk 0:00:03]} 46. Rf8+ {[%clk 0:00:14]}  Bf5 {[%clk 0:00:03]} 47. c5 {[%clk 0:00:15]}  g4 {[%clk 0:00:04]} 48. b5 {[%clk 0:00:15]}  g3+ {[%clk 0:00:04]} 49. Kg2 {[%clk 0:00:15]}  h3+ {[%clk 0:00:05]} 50. Kg1 {[%clk 0:00:14]}  Kg4 {[%clk 0:00:05]} 51. c6 {[%clk 0:00:15]}  h2+ {[%clk 0:00:05]} 0-1

[Event "January 9 Early 2024"]
[Site "https://www.chess.com"]
[Date "2024.01.11"]
[Round "6"]
[White "Shubenkova, Veronika"]
[Black "Sychev, Klementy"]
[Result "1-0"]
[Board "212"]
[TimeControl "180+1"]
[WhiteFideId "44124040"]
[BlackFideId "4114060"]
[WhiteElo "2595"]
[BlackElo "2785"]
[WhiteTeam "RUS"]
[BlackTeam "FID"]
[WhiteClock "0:00:01"]
[BlackClock "0:00:01"]

1. d4 {[%clk 0:02:59]}  Nf6 {[%clk 0:02:57]} 2. e3 {[%clk 0:02:58]}  d6 {[%clk 0:02:54]} 3. Nf3 {[%clk 0:02:56]}  Nbd7 {[%clk 0:02:54]} 4. Be2 {[%clk 0:02:57]}  e5 {[%clk 0:02:54]} 5. O-O {[%clk 0:02:56]}  e4 {[%clk 0:02:55]} 6. Nfd2 {[%clk 0:02:56]}  d5 {[%clk 0:02:55]} 7. c4 {[%clk 0:02:55]}  c6 {[%clk 0:02:56]} 8. Nc3 {[%clk 0:02:56]}  Be7 {[%clk 0:02:47]} 9. f3 {[%clk 0:02:56]}  exf3 {[%clk 0:02:47]} 10. Nxf3 {[%clk 0:02:52]}  O-O {[%clk 0:02:47]} 11. cxd5 {[%clk 0:02:51]}  cxd5 {[%clk 0:02:46]} 12. Bd3 {[%clk 0:02:48]}  Bd6 {[%clk 0:02:43]} 13. Bd2 {[%clk 0:02:44]}  Re8 {[%clk 0:02:42]} 14. Qb3 {[%clk 0:02:43]}  Nf8 {[%clk 0:02:41]} 15. Rae1 {[%clk 0:02:40]}  Ng6 {[%clk 0:02:41]} 16. e4 {[%clk 0:02:39]}  dxe4 {[%clk 0:02:31]} 17. Nxe4 {[%clk 0:02:39]}  Be6 {[%clk 0:02:23]} 18. Nxf6+ {[%clk 0:02:37]}  gxf6 {[%clk 0:02:07]} 19. Qa4 {[%clk 0:02:00]}  a6 {[%clk 0:01:49]} 20. Be4 {[%clk 0:01:27]}  Qb6 {[%clk 0:01:37]} 21. Bc3 {[%clk 0:01:08]}  Rac8 {[%clk 0:01:09]} 22. Kh1 {[%clk 0:01:07]}  Bc4 {[%clk 0:01:00]} 23. Bxg6 {[%clk 0:01:03]}  Rxe1 {[%clk 0:01:00]} 24. Bxh7+ {[%clk 0:00:57]}  Kxh7 {[%clk 0:00:57]} 25. Rxe1 {[%clk 0:00:57]}  Kg7 {[%clk 0:00:52]} 26. Qd7 {[%clk 0:00:53]}  Qc6 {[%clk 0:00:44]} 27. Qg4+ {[%clk 0:00:52]}  Kf8 {[%clk 0:00:45]} 28. d5 {[%clk 0:00:48]}  Bxd5 {[%clk 0:00:34]} 29. Bxf6 {[%clk 0:00:48]}  Be6 {[%clk 0:00:34]} 30. Qg7+ {[%clk 0:00:43]}  Ke8 {[%clk 0:00:33]} 31. Nd4 {[%clk 0:00:39]}  Qe4 {[%clk 0:00:27]} 32. Nf3 {[%clk 0:00:06]}  Qf5 {[%clk 0:00:16]} 33. Ng5 {[%clk 0:00:03]}  Rc7 {[%clk 0:00:07]} 34. Nxe6 {[%clk 0:00:03]}  fxe6 {[%clk 0:00:07]} 35. Qg8+ {[%clk 0:00:03]}  Kd7 {[%clk 0:00:08]} 36. Qf7+ {[%clk 0:00:03]}  Kc6 {[%clk 0:00:08]} 37. Qe8+ {[%clk 0:00:03]}  Kb6 {[%clk 0:00:07]} 38. Bd4+ {[%clk 0:00:03]}  Ka5 {[%clk 0:00:06]} 39. b4+ {[%clk 0:00:03]}  Bxb4 {[%clk 0:00:05]} 40. Rd1 {[%clk 0:00:02]}  Qe4 {[%clk 0:00:02]} 41. Qd8 {[%clk 0:00:01]}  Qc6 {[%clk 0:00:01]} 42. Be5 {[%clk 0:00:01]} 1-0

[Event "January 9 Early 2024"]
[Site "https://www.chess.com"]
[Date "2024.01.11"]
[Round "6"]
[White "Kantans, Toms"]
[Black "Maksimovic, Bojan"]
[Result "1-0"]
[Board "213"]
[TimeControl "180+1"]
[WhiteFideId "11602945"]
[BlackFideId "14408120"]
[WhiteElo "2640"]
[BlackElo "2882"]
[WhiteTeam "LAT"]
[BlackTeam "BIH"]
[WhiteClock "0:00:10"]
[BlackClock "0:00:11"]

1. e4 {[%clk 0:03:00]}  a6 {[%clk 0:03:00]} 2. d4 {[%clk 0:02:59]}  e6 {[%clk 0:03:01]} 3. Nf3 {[%clk 0:02:51]}  d5 {[%clk 0:03:01]} 4. e5 {[%clk 0:02:38]}  c5 {[%clk 0:03:01]} 5. c3 {[%clk 0:02:38]}  Bd7 {[%clk 0:03:01]} 6. Be3 {[%clk 0:02:25]}  cxd4 {[%clk 0:03:00]} 7. cxd4 {[%clk 0:02:26]}  Ne7 {[%clk 0:03:00]} 8. Bd3 {[%clk 0:02:22]}  Nf5 {[%clk 0:03:00]} 9. Bxf5 {[%clk 0:02:22]}  exf5 {[%clk 0:03:00]} 10. O-O {[%clk 0:02:22]}  Be7 {[%clk 0:02:58]} 11. Nc3 {[%clk 0:02:22]}  Be6 {[%clk 0:02:58]} 12. Rc1 {[%clk 0:02:20]}  Nc6 {[%clk 0:02:55]} 13. Ne1 {[%clk 0:02:20]}  O-O {[%clk 0:02:15]} 14. Nd3 {[%clk 0:02:20]}  Rc8 {[%clk 0:02:13]} 15. Qf3 {[%clk 0:02:10]}  Qd7 {[%clk 0:01:37]} 16. a3 {[%clk 0:01:41]}  h6 {[%clk 0:01:34]} 17. g3 {[%clk 0:01:39]}  Kh7 {[%clk 0:01:27]} 18. b4 {[%clk 0:01:33]}  g5 {[%clk 0:01:26]} 19. Qe2 {[%clk 0:00:59]}  f4 {[%clk 0:01:10]} 20. gxf4 {[%clk 0:00:58]}  Bh3 {[%clk 0:01:10]} 21. fxg5 {[%clk 0:00:49]}  Bxg5 {[%clk 0:00:23]} 22. Bxg5 {[%clk 0:00:47]}  Rg8 {[%clk 0:00:23]} 23. f4 {[%clk 0:00:47]}  Nxd4 {[%clk 0:00:10]} 24. Qh5 {[%clk 0:00:46]}  Qg4+ {[%clk 0:00:04]} 25. Qxg4 {[%clk 0:00:46]}  Bxg4 {[%clk 0:00:05]} 26. Nxd5 {[%clk 0:00:34]}  Ne2+ {[%clk 0:00:02]} 27. Kf2 {[%clk 0:00:34]}  Nxc1 {[%clk 0:00:03]} 28. Nxc1 {[%clk 0:00:25]}  hxg5 {[%clk 0:00:03]} 29. Nf6+ {[%clk 0:00:24]}  Kg6 {[%clk 0:00:03]} 30. Nxg4 {[%clk 0:00:19]}  Kf5 {[%clk 0:00:03]} 31. Nh6+ {[%clk 0:00:18]}  Kxf4 {[%clk 0:00:03]} 32. Ne2+ {[%clk 0:00:17]}  Kxe5 {[%clk 0:00:03]} 33. Nxg8 {[%clk 0:00:17]}  Rxg8 {[%clk 0:00:04]} 34. Rc1 {[%clk 0:00:15]}  Rh8 {[%clk 0:00:05]} 35. Rc5+ {[%clk 0:00:14]}  Ke4 {[%clk 0:00:04]} 36. Kg2 {[%clk 0:00:14]}  f5 {[%clk 0:00:04]} 37. Ng3+ {[%clk 0:00:14]}  Kd4 {[%clk 0:00:04]} 38. Nxf5+ {[%clk 0:00:14]}  Kd3 {[%clk 0:00:05]} 39. Nd6 {[%clk 0:00:12]}  Rh7 {[%clk 0:00:04]} 40. Rxg5 {[%clk 0:00:11]}  Kc3 {[%clk 0:00:05]} 41. Rg3+ {[%clk 0:00:09]}  Kb2 {[%clk 0:00:05]} 42. Nf5 {[%clk 0:00:09]}  b5 {[%clk 0:00:05]} 43. h4 {[%clk 0:00:07]}  Rh5 {[%clk 0:00:05]} 44. Rf3 {[%clk 0:00:08]}  Kc2 {[%clk 0:00:04]} 45. Kg3 {[%clk 0:00:08]}  Rh8 {[%clk 0:00:04]} 46. Kg4 {[%clk 0:00:08]}  Kd2 {[%clk 0:00:05]} 47. h5 {[%clk 0:00:08]}  Ke2 {[%clk 0:00:05]} 48. Nd4+ {[%clk 0:00:09]}  Kd2 {[%clk 0:00:05]} 49. Kg5 {[%clk 0:00:09]}  Rd8 {[%clk 0:00:05]} 50. Nf5 {[%clk 0:00:09]}  Rd4 {[%clk 0:00:06]} 51. h6 {[%clk 0:00:09]}  Rd7 {[%clk 0:00:06]} 52. Rh3 {[%clk 0:00:09]}  Rd3 {[%clk 0:00:07]} 53. Rxd3+ {[%clk 0:00:08]}  Kc2 {[%clk 0:00:07]} 54. Re3 {[%clk 0:00:08]}  Kb1 {[%clk 0:00:08]} 55. h7 {[%clk 0:00:09]}  Ka1 {[%clk 0:00:09]} 56. h8=Q+ {[%clk 0:00:09]}  Ka2 {[%clk 0:00:10]} 57. Qh2+ {[%clk 0:00:09]}  Kb1 {[%clk 0:00:11]} 58. Re1# {[%clk 0:00:10]} 1-0